[Event "Titled Tuesday Blitz February 14 Early 2023"]
[White "Kanyamarala, Tarun"]
[Black "Predke, Alexandr"]
[WhiteFideId "45004714"]
[BlackFideId "24107581"]
[WhiteElo "2342"]
[BlackElo "2685"]
[Result "0-1"]
[Round "01"]
[TimeControl "180+2"]
[Date "2023.02.15"]
[WhiteClock "0:01:04"]
[BlackClock "0:01:27"]

1. d4 {[%clk 0:02:58]}  Nf6 {[%clk 0:02:59]} 2. c4 {[%clk 0:02:54]}  e6 {[%clk 0:03:00]} 3. Nc3 {[%clk 0:02:54]}  Bb4 {[%clk 0:02:59]} 4. e3 {[%clk 0:02:54]}  b6 {[%clk 0:02:58]} 5. Bd3 {[%clk 0:02:49]}  Bb7 {[%clk 0:02:57]} 6. Ne2 {[%clk 0:02:48]}  Bxg2 {[%clk 0:02:51]} 7. Rg1 {[%clk 0:02:48]}  Be4 {[%clk 0:02:52]} 8. Rxg7 {[%clk 0:02:47]}  Bg6 {[%clk 0:02:50]} 9. Nf4 {[%clk 0:02:42]}  Bf8 {[%clk 0:02:47]} 10. Rxg6 {[%clk 0:02:33]}  hxg6 {[%clk 0:02:45]} 11. Bd2 {[%clk 0:02:23]}  Nc6 {[%clk 0:02:41]} 12. Qf3 {[%clk 0:02:17]}  Bg7 {[%clk 0:02:38]} 13. O-O-O {[%clk 0:02:06]}  Qe7 {[%clk 0:02:36]} 14. Nb5 {[%clk 0:01:54]}  Rc8 {[%clk 0:02:26]} 15. Qg2 {[%clk 0:01:49]}  a6 {[%clk 0:02:21]} 16. Nc3 {[%clk 0:01:48]}  Nb4 {[%clk 0:02:05]} 17. Bb1 {[%clk 0:01:47]}  c5 {[%clk 0:02:04]} 18. d5 {[%clk 0:01:44]}  exd5 {[%clk 0:02:01]} 19. Nfxd5 {[%clk 0:01:43]}  Nbxd5 {[%clk 0:02:00]} 20. cxd5 {[%clk 0:01:38]}  b5 {[%clk 0:01:59]} 21. e4 {[%clk 0:01:37]}  d6 {[%clk 0:01:55]} 22. Bg5 {[%clk 0:01:35]}  b4 {[%clk 0:01:50]} 23. Ne2 {[%clk 0:01:34]}  Bh6 {[%clk 0:01:43]} 24. f4 {[%clk 0:01:30]}  Bxg5 {[%clk 0:01:42]} 25. fxg5 {[%clk 0:01:30]}  Nd7 {[%clk 0:01:43]} 26. e5 {[%clk 0:01:24]}  Qxe5 {[%clk 0:01:35]} 27. Re1 {[%clk 0:01:14]}  Qe3+ {[%clk 0:01:33]} 28. Kd1 {[%clk 0:01:14]}  Ne5 {[%clk 0:01:33]} 29. Ng1 {[%clk 0:01:03]}  Qd4+ {[%clk 0:01:28]} 30. Kc1 {[%clk 0:01:04]}  Qf4+ {[%clk 0:01:27]} 31. Kd1 {[%clk 0:01:04]}  Rxh2 {[%clk 0:01:27]} 0-1


[Site "https://www.chess.com"]

[Event "Titled Tuesday Blitz February 14 Early 2023"]
[White "Zhigalko, Sergei"]
[Black "Grycel, Kamil"]
[WhiteFideId "13502956"]
[BlackFideId "1115499"]
[WhiteElo "2572"]
[BlackElo "2315"]
[Result "1-0"]
[Round "01"]
[TimeControl "180+2"]
[Date "2023.02.15"]
[WhiteClock "0:00:20"]
[BlackClock "0:00:24"]

1. e4 {[%clk 0:03:00]}  b6 {[%clk 0:02:59]} 2. d4 {[%clk 0:03:01]}  Bb7 {[%clk 0:03:00]} 3. Bd3 {[%clk 0:03:00]}  Nf6 {[%clk 0:02:59]} 4. Qe2 {[%clk 0:02:59]}  Nc6 {[%clk 0:02:59]} 5. c3 {[%clk 0:02:57]}  e5 {[%clk 0:02:59]} 6. d5 {[%clk 0:02:54]}  Ne7 {[%clk 0:02:59]} 7. h4 {[%clk 0:02:49]}  h5 {[%clk 0:02:58]} 8. Nh3 {[%clk 0:02:40]}  Ng6 {[%clk 0:02:57]} 9. g3 {[%clk 0:02:40]}  c6 {[%clk 0:02:57]} 10. c4 {[%clk 0:02:40]}  Bb4+ {[%clk 0:02:57]} 11. Nd2 {[%clk 0:02:36]}  Ng4 {[%clk 0:02:52]} 12. O-O {[%clk 0:02:32]}  Be7 {[%clk 0:02:06]} 13. Nf3 {[%clk 0:02:30]}  Qc7 {[%clk 0:02:02]} 14. Bd2 {[%clk 0:02:17]}  c5 {[%clk 0:01:44]} 15. Nh2 {[%clk 0:02:09]}  Nxh2 {[%clk 0:01:40]} 16. Kxh2 {[%clk 0:02:10]}  d6 {[%clk 0:01:37]} 17. Ng5 {[%clk 0:01:53]}  Bc8 {[%clk 0:01:37]} 18. Rg1 {[%clk 0:01:50]}  Bxg5 {[%clk 0:01:30]} 19. Bxg5 {[%clk 0:01:49]}  f6 {[%clk 0:01:29]} 20. Bd2 {[%clk 0:01:45]}  Bd7 {[%clk 0:01:24]} 21. a3 {[%clk 0:01:30]}  Ne7 {[%clk 0:01:21]} 22. b4 {[%clk 0:01:29]}  f5 {[%clk 0:01:07]} 23. Bg5 {[%clk 0:01:09]}  fxe4 {[%clk 0:01:00]} 24. Bxe4 {[%clk 0:01:10]}  Nf5 {[%clk 0:00:58]} 25. f4 {[%clk 0:01:00]}  g6 {[%clk 0:00:42]} 26. fxe5 {[%clk 0:00:44]}  dxe5 {[%clk 0:00:37]} 27. d6 {[%clk 0:00:44]}  Qc8 {[%clk 0:00:37]} 28. Bxa8 {[%clk 0:00:43]}  Qxa8 {[%clk 0:00:38]} 29. Qxe5+ {[%clk 0:00:42]}  Kf7 {[%clk 0:00:37]} 30. Qf6+ {[%clk 0:00:41]}  Kg8 {[%clk 0:00:37]} 31. Qxg6+ {[%clk 0:00:39]}  Ng7 {[%clk 0:00:37]} 32. Bf6 {[%clk 0:00:29]}  Rh7 {[%clk 0:00:36]} 33. Rae1 {[%clk 0:00:26]}  Qf3 {[%clk 0:00:24]} 34. Re7 {[%clk 0:00:20]} 1-0


[Site "https://www.chess.com"]

[Event "Titled Tuesday Blitz February 14 Early 2023"]
[White "Kovalenko, Igor"]
[Black "Goltseva, Ekaterina"]
[WhiteFideId "14117908"]
[BlackFideId "24173770"]
[WhiteElo "2674"]
[BlackElo "2283"]
[Result "1-0"]
[Round "01"]
[TimeControl "180+2"]
[Date "2023.02.15"]
[WhiteClock "0:02:08"]
[BlackClock "0:00:17"]

1. d4 {[%clk 0:03:00]}  Nf6 {[%clk 0:02:40]} 2. c4 {[%clk 0:02:53]}  e6 {[%clk 0:02:37]} 3. Nf3 {[%clk 0:02:53]}  d5 {[%clk 0:02:35]} 4. g3 {[%clk 0:02:53]}  Bb4+ {[%clk 0:02:34]} 5. Nbd2 {[%clk 0:02:53]}  O-O {[%clk 0:02:33]} 6. Bg2 {[%clk 0:02:53]}  b6 {[%clk 0:02:33]} 7. O-O {[%clk 0:02:53]}  Bb7 {[%clk 0:02:33]} 8. Ne5 {[%clk 0:02:52]}  Re8 {[%clk 0:02:32]} 9. a3 {[%clk 0:02:51]}  Bf8 {[%clk 0:02:30]} 10. Ndf3 {[%clk 0:02:50]}  Nbd7 {[%clk 0:02:22]} 11. cxd5 {[%clk 0:02:43]}  Bxd5 {[%clk 0:02:18]} 12. Qc2 {[%clk 0:02:39]}  c5 {[%clk 0:02:10]} 13. Ng5 {[%clk 0:02:26]}  Nxe5 {[%clk 0:02:04]} 14. dxe5 {[%clk 0:02:24]}  Bxg2 {[%clk 0:02:00]} 15. exf6 {[%clk 0:02:24]}  g6 {[%clk 0:01:37]} 16. Kxg2 {[%clk 0:02:24]}  Qxf6 {[%clk 0:01:37]} 17. Ne4 {[%clk 0:02:23]}  Qg7 {[%clk 0:01:35]} 18. Bd2 {[%clk 0:02:22]}  f5 {[%clk 0:01:34]} 19. Bc3 {[%clk 0:02:22]}  e5 {[%clk 0:01:34]} 20. Nd2 {[%clk 0:02:22]}  Qb7+ {[%clk 0:01:30]} 21. e4 {[%clk 0:02:22]}  Bg7 {[%clk 0:01:30]} 22. a4 {[%clk 0:02:20]}  Rad8 {[%clk 0:01:29]} 23. Rfe1 {[%clk 0:02:20]}  Rf8 {[%clk 0:01:27]} 24. Nc4 {[%clk 0:02:20]}  f4 {[%clk 0:01:22]} 25. f3 {[%clk 0:02:18]}  fxg3 {[%clk 0:01:19]} 26. hxg3 {[%clk 0:02:19]}  Qf7 {[%clk 0:01:19]} 27. Qe2 {[%clk 0:02:18]}  Qe6 {[%clk 0:01:09]} 28. Rad1 {[%clk 0:02:17]}  h5 {[%clk 0:01:08]} 29. b3 {[%clk 0:02:16]}  h4 {[%clk 0:01:04]} 30. Rxd8 {[%clk 0:02:15]}  Rxd8 {[%clk 0:00:58]} 31. Rd1 {[%clk 0:02:15]}  Rf8 {[%clk 0:00:35]} 32. gxh4 {[%clk 0:02:14]}  Qe7 {[%clk 0:00:35]} 33. Qf2 {[%clk 0:02:12]}  Rf4 {[%clk 0:00:28]} 34. Qg3 {[%clk 0:02:12]}  Kh7 {[%clk 0:00:26]} 35. Rd6 {[%clk 0:02:09]}  Bf6 {[%clk 0:00:17]} 36. Nxe5 {[%clk 0:02:08]} 1-0


[Site "https://www.chess.com"]

[Event "Titled Tuesday Blitz February 14 Early 2023"]
[White "Khandelwal, Ankush"]
[Black "Gharibyan, Mamikon"]
[WhiteFideId "413470"]
[BlackFideId "13308300"]
[WhiteElo "2205"]
[BlackElo "2500"]
[Result "0-1"]
[Round "01"]
[TimeControl "180+2"]
[Date "2023.02.15"]
[WhiteClock "0:00:16"]
[BlackClock "0:01:00"]

1. d4 {[%clk 0:03:00]}  Nf6 {[%clk 0:02:59]} 2. Nc3 {[%clk 0:02:59]}  d5 {[%clk 0:02:55]} 3. Bf4 {[%clk 0:02:57]}  g6 {[%clk 0:02:51]} 4. Qd2 {[%clk 0:02:43]}  h6 {[%clk 0:02:40]} 5. h4 {[%clk 0:02:31]}  Bg7 {[%clk 0:02:40]} 6. O-O-O {[%clk 0:02:29]}  c6 {[%clk 0:02:35]} 7. Kb1 {[%clk 0:02:28]}  b5 {[%clk 0:02:35]} 8. e3 {[%clk 0:02:26]}  a5 {[%clk 0:02:32]} 9. f3 {[%clk 0:02:25]}  a4 {[%clk 0:02:24]} 10. a3 {[%clk 0:02:22]}  Na6 {[%clk 0:02:24]} 11. Na2 {[%clk 0:02:13]}  Nd7 {[%clk 0:02:22]} 12. e4 {[%clk 0:01:52]}  Nb6 {[%clk 0:02:07]} 13. Nh3 {[%clk 0:01:43]}  Bxh3 {[%clk 0:02:05]} 14. Rxh3 {[%clk 0:01:42]}  h5 {[%clk 0:01:56]} 15. e5 {[%clk 0:01:34]}  e6 {[%clk 0:01:54]} 16. g4 {[%clk 0:01:28]}  Bf8 {[%clk 0:01:50]} 17. Bg5 {[%clk 0:01:25]}  Be7 {[%clk 0:01:49]} 18. gxh5 {[%clk 0:01:18]}  Rxh5 {[%clk 0:01:47]} 19. f4 {[%clk 0:01:16]}  Nc4 {[%clk 0:01:39]} 20. Qc3 {[%clk 0:00:59]}  Kd7 {[%clk 0:01:31]} 21. Be2 {[%clk 0:00:58]}  Rh7 {[%clk 0:01:30]} 22. Rdh1 {[%clk 0:00:53]}  c5 {[%clk 0:01:14]} 23. Bxe7 {[%clk 0:00:39]}  Qxe7 {[%clk 0:01:11]} 24. h5 {[%clk 0:00:33]}  b4 {[%clk 0:01:11]} 25. axb4 {[%clk 0:00:33]}  cxb4 {[%clk 0:01:06]} 26. Qd3 {[%clk 0:00:21]}  b3 {[%clk 0:00:59]} 27. cxb3 {[%clk 0:00:17]}  axb3 {[%clk 0:01:00]} 28. Nc1 {[%clk 0:00:16]}  Nb4 {[%clk 0:01:00]} 29. Qxb3 {[%clk 0:00:16]}  Nd2# {[%clk 0:01:00]} 0-1


[Site "https://www.chess.com"]

[Event "Titled Tuesday Blitz February 14 Early 2023"]
[White "Ponkratov, Pavel"]
[Black "Taichman, Ori"]
[WhiteFideId "4157800"]
[BlackFideId "2804069"]
[WhiteElo "2580"]
[BlackElo "2299"]
[Result "0-1"]
[Round "01"]
[TimeControl "180+2"]
[Date "2023.02.15"]
[WhiteClock "0:01:41"]
[BlackClock "0:01:31"]

1. d4 {[%clk 0:02:32]}  Nf6 {[%clk 0:02:57]} 2. c4 {[%clk 0:02:31]}  g6 {[%clk 0:02:57]} 3. Nc3 {[%clk 0:02:30]}  Bg7 {[%clk 0:02:58]} 4. e4 {[%clk 0:02:27]}  O-O {[%clk 0:02:59]} 5. Be2 {[%clk 0:02:26]}  d6 {[%clk 0:02:59]} 6. h4 {[%clk 0:02:25]}  e5 {[%clk 0:02:55]} 7. d5 {[%clk 0:02:25]}  Na6 {[%clk 0:02:54]} 8. h5 {[%clk 0:02:24]}  h6 {[%clk 0:02:45]} 9. hxg6 {[%clk 0:02:24]}  fxg6 {[%clk 0:02:45]} 10. Bxh6 {[%clk 0:02:22]}  Bxh6 {[%clk 0:02:46]} 11. Rxh6 {[%clk 0:02:21]}  Kg7 {[%clk 0:02:47]} 12. Rh2 {[%clk 0:02:19]}  Nc5 {[%clk 0:02:44]} 13. Qc2 {[%clk 0:02:17]}  Rh8 {[%clk 0:02:43]} 14. Rxh8 {[%clk 0:02:16]}  Qxh8 {[%clk 0:02:44]} 15. O-O-O {[%clk 0:02:15]}  Qh6+ {[%clk 0:02:41]} 16. Kb1 {[%clk 0:02:14]}  Bd7 {[%clk 0:02:40]} 17. Bf3 {[%clk 0:02:12]}  a5 {[%clk 0:02:37]} 18. Nge2 {[%clk 0:02:12]}  Bg4 {[%clk 0:02:30]} 19. Ng3 {[%clk 0:02:09]}  Bxf3 {[%clk 0:02:29]} 20. gxf3 {[%clk 0:02:09]}  Rh8 {[%clk 0:02:25]} 21. Nb5 {[%clk 0:02:08]}  Qf4 {[%clk 0:02:18]} 22. Qe2 {[%clk 0:02:05]}  Rh2 {[%clk 0:02:15]} 23. Rg1 {[%clk 0:02:03]}  Ne8 {[%clk 0:01:52]} 24. b3 {[%clk 0:01:43]}  c6 {[%clk 0:01:38]} 25. Nc3 {[%clk 0:01:42]}  Kf7 {[%clk 0:01:32]} 26. Kb2 {[%clk 0:01:41]}  Rxf2 {[%clk 0:01:31]} 0-1


[Site "https://www.chess.com"]

[Event "Titled Tuesday Blitz February 14 Early 2023"]
[White "Rakhmanov, Aleksandr"]
[Black "Manukian, Artak"]
[WhiteFideId "4173708"]
[BlackFideId "13301373"]
[WhiteElo "2632"]
[BlackElo "2196"]
[Result "1/2-1/2"]
[Round "01"]
[TimeControl "180+2"]
[Date "2023.02.15"]
[WhiteClock "0:00:11"]
[BlackClock "0:01:18"]

1. c4 {[%clk 0:02:53]}  g6 {[%clk 0:02:58]} 2. Nc3 {[%clk 0:02:50]}  Bg7 {[%clk 0:02:59]} 3. g3 {[%clk 0:02:51]}  d6 {[%clk 0:03:00]} 4. Bg2 {[%clk 0:02:51]}  Nf6 {[%clk 0:03:01]} 5. d3 {[%clk 0:02:51]}  O-O {[%clk 0:03:01]} 6. h3 {[%clk 0:02:52]}  e5 {[%clk 0:03:02]} 7. e4 {[%clk 0:02:52]}  c5 {[%clk 0:03:03]} 8. Nge2 {[%clk 0:02:51]}  Nc6 {[%clk 0:03:04]} 9. O-O {[%clk 0:02:52]}  Nd4 {[%clk 0:03:05]} 10. f4 {[%clk 0:02:42]}  Rb8 {[%clk 0:03:01]} 11. g4 {[%clk 0:02:21]}  a6 {[%clk 0:02:59]} 12. f5 {[%clk 0:02:16]}  Ne8 {[%clk 0:02:58]} 13. Nxd4 {[%clk 0:02:12]}  cxd4 {[%clk 0:02:56]} 14. Nd5 {[%clk 0:02:13]}  g5 {[%clk 0:02:14]} 15. f6 {[%clk 0:02:05]}  Bh6 {[%clk 0:02:14]} 16. h4 {[%clk 0:02:03]}  Kh8 {[%clk 0:02:10]} 17. hxg5 {[%clk 0:02:01]}  Rg8 {[%clk 0:02:08]} 18. gxh6 {[%clk 0:02:00]}  Bxg4 {[%clk 0:02:02]} 19. Qc2 {[%clk 0:01:42]}  Bh3 {[%clk 0:02:02]} 20. Rf2 {[%clk 0:01:40]}  Nxf6 {[%clk 0:01:45]} 21. Nxf6 {[%clk 0:01:27]}  Bxg2 {[%clk 0:01:45]} 22. Nxg8 {[%clk 0:00:28]}  Qh4 {[%clk 0:01:44]} 23. Kxg2 {[%clk 0:00:22]}  Rxg8+ {[%clk 0:01:39]} 24. Kf1 {[%clk 0:00:23]}  Qh1+ {[%clk 0:01:33]} 25. Ke2 {[%clk 0:00:21]}  Qh5+ {[%clk 0:01:27]} 26. Kd2 {[%clk 0:00:15]}  Qxh6+ {[%clk 0:01:27]} 27. Ke1 {[%clk 0:00:13]}  Rg1+ {[%clk 0:01:21]} 28. Rf1 {[%clk 0:00:12]}  Rxf1+ {[%clk 0:01:19]} 29. Kxf1 {[%clk 0:00:13]}  Qh1+ {[%clk 0:01:19]} 30. Ke2 {[%clk 0:00:12]}  Qg2+ {[%clk 0:01:17]} 31. Kd1 {[%clk 0:00:12]}  Qf1+ {[%clk 0:01:15]} 32. Kd2 {[%clk 0:00:12]}  Qf2+ {[%clk 0:01:16]} 33. Kd1 {[%clk 0:00:11]}  Qf1+ {[%clk 0:01:16]} 34. Kd2 {[%clk 0:00:11]}  Qf2+ {[%clk 0:01:17]} 35. Kd1 {[%clk 0:00:11]}  Qf1+ {[%clk 0:01:18]} 1/2-1/2


[Site "https://www.chess.com"]

[Event "Titled Tuesday Blitz February 14 Early 2023"]
[White "Fernandez Garcia, Gumersindo"]
[Black "Ter-Sahakyan, Samvel"]
[WhiteFideId "24516740"]
[BlackFideId "13302531"]
[WhiteElo "2160"]
[BlackElo "2617"]
[Result "0-1"]
[Round "01"]
[TimeControl "180+2"]
[Date "2023.02.15"]
[WhiteClock "0:00:18"]
[BlackClock "0:00:41"]

1. d4 {[%clk 0:02:55]}  Nf6 {[%clk 0:02:59]} 2. c4 {[%clk 0:02:53]}  g6 {[%clk 0:02:59]} 3. Nc3 {[%clk 0:02:53]}  Bg7 {[%clk 0:03:00]} 4. e4 {[%clk 0:02:54]}  d6 {[%clk 0:03:00]} 5. Bg5 {[%clk 0:02:54]}  O-O {[%clk 0:02:59]} 6. Qd2 {[%clk 0:02:53]}  Nc6 {[%clk 0:02:43]} 7. f3 {[%clk 0:02:45]}  e5 {[%clk 0:02:41]} 8. d5 {[%clk 0:02:44]}  Nd4 {[%clk 0:02:41]} 9. Nge2 {[%clk 0:02:42]}  c5 {[%clk 0:02:26]} 10. dxc6 {[%clk 0:02:33]}  bxc6 {[%clk 0:02:25]} 11. Nxd4 {[%clk 0:02:27]}  exd4 {[%clk 0:02:26]} 12. Qxd4 {[%clk 0:02:18]}  h6 {[%clk 0:02:26]} 13. Bxf6 {[%clk 0:01:29]}  Bxf6 {[%clk 0:02:27]} 14. Qd2 {[%clk 0:01:29]}  Rb8 {[%clk 0:02:24]} 15. Bd3 {[%clk 0:01:22]}  Qb6 {[%clk 0:02:18]} 16. Na4 {[%clk 0:01:16]}  Qa6 {[%clk 0:02:08]} 17. Nc3 {[%clk 0:01:13]}  Be6 {[%clk 0:02:03]} 18. O-O-O {[%clk 0:01:11]}  Qa5 {[%clk 0:01:59]} 19. f4 {[%clk 0:00:57]}  Rb7 {[%clk 0:01:24]} 20. f5 {[%clk 0:00:47]}  Bg5 {[%clk 0:01:23]} 21. fxe6 {[%clk 0:00:43]}  Bxd2+ {[%clk 0:01:21]} 22. Rxd2 {[%clk 0:00:44]}  fxe6 {[%clk 0:01:22]} 23. Re1 {[%clk 0:00:41]}  Rfb8 {[%clk 0:01:18]} 24. Nd1 {[%clk 0:00:29]}  Qxa2 {[%clk 0:01:15]} 25. e5 {[%clk 0:00:28]}  d5 {[%clk 0:01:09]} 26. Bxg6 {[%clk 0:00:24]}  Qxc4+ {[%clk 0:01:08]} 27. Bc2 {[%clk 0:00:23]}  Rb6 {[%clk 0:01:01]} 28. Rf2 {[%clk 0:00:22]}  Ra6 {[%clk 0:00:58]} 29. Ref1 {[%clk 0:00:20]}  Ra1+ {[%clk 0:00:54]} 30. Kd2 {[%clk 0:00:21]}  Qd4+ {[%clk 0:00:54]} 31. Bd3 {[%clk 0:00:21]}  Rxb2+ {[%clk 0:00:51]} 32. Nxb2 {[%clk 0:00:20]}  Qxb2+ {[%clk 0:00:51]} 33. Ke3 {[%clk 0:00:21]}  Qxe5+ {[%clk 0:00:51]} 34. Kd2 {[%clk 0:00:20]}  Ra2+ {[%clk 0:00:51]} 35. Bc2 {[%clk 0:00:20]}  Qd4+ {[%clk 0:00:51]} 36. Kc1 {[%clk 0:00:21]}  Ra1+ {[%clk 0:00:42]} 37. Bb1 {[%clk 0:00:20]}  Qc3+ {[%clk 0:00:41]} 38. Rc2 {[%clk 0:00:20]}  Qe3+ {[%clk 0:00:41]} 39. Kb2 {[%clk 0:00:18]}  Qa3# {[%clk 0:00:41]} 0-1


[Site "https://www.chess.com"]

[Event "Titled Tuesday Blitz February 14 Early 2023"]
[White "Makarian, Rudik"]
[Black "Tymrakiewicz, Rafal"]
[WhiteFideId "44105681"]
[BlackFideId "1108832"]
[WhiteElo "2545"]
[BlackElo "2144"]
[Result "1-0"]
[Round "01"]
[TimeControl "180+2"]
[Date "2023.02.15"]
[WhiteClock "0:00:44"]
[BlackClock "0:00:06"]

1. d4 {[%clk 0:02:57]}  Nf6 {[%clk 0:02:55]} 2. c4 {[%clk 0:02:57]}  d6 {[%clk 0:02:53]} 3. Nf3 {[%clk 0:02:54]}  Nc6 {[%clk 0:02:53]} 4. Nc3 {[%clk 0:02:54]}  e5 {[%clk 0:02:52]} 5. g3 {[%clk 0:02:52]}  Bg4 {[%clk 0:02:51]} 6. d5 {[%clk 0:02:52]}  Bxf3 {[%clk 0:02:39]} 7. exf3 {[%clk 0:02:53]}  Nb8 {[%clk 0:02:39]} 8. Bh3 {[%clk 0:02:41]}  g6 {[%clk 0:02:37]} 9. f4 {[%clk 0:02:41]}  exf4 {[%clk 0:02:13]} 10. O-O {[%clk 0:02:40]}  Be7 {[%clk 0:02:03]} 11. Bxf4 {[%clk 0:02:39]}  O-O {[%clk 0:02:03]} 12. Re1 {[%clk 0:02:38]}  Re8 {[%clk 0:02:03]} 13. Qd2 {[%clk 0:02:39]}  Nbd7 {[%clk 0:01:32]} 14. Re2 {[%clk 0:02:36]}  Nh5 {[%clk 0:01:29]} 15. Rae1 {[%clk 0:01:27]}  Nxf4 {[%clk 0:01:07]} 16. gxf4 {[%clk 0:01:19]}  f5 {[%clk 0:00:43]} 17. Nb5 {[%clk 0:01:09]}  Nf6 {[%clk 0:00:38]} 18. Nd4 {[%clk 0:01:09]}  Bf8 {[%clk 0:00:30]} 19. Ne6 {[%clk 0:01:07]}  Qd7 {[%clk 0:00:29]} 20. Qd3 {[%clk 0:01:06]}  Bg7 {[%clk 0:00:21]} 21. Kh1 {[%clk 0:01:04]}  Ne4 {[%clk 0:00:16]} 22. Rxe4 {[%clk 0:00:55]}  fxe4 {[%clk 0:00:15]} 23. Qxe4 {[%clk 0:00:55]}  Qe7 {[%clk 0:00:16]} 24. f5 {[%clk 0:00:55]}  Qf6 {[%clk 0:00:16]} 25. Rg1 {[%clk 0:00:52]}  g5 {[%clk 0:00:14]} 26. f4 {[%clk 0:00:48]}  h6 {[%clk 0:00:10]} 27. Qf3 {[%clk 0:00:45]}  Kh8 {[%clk 0:00:06]} 28. fxg5 {[%clk 0:00:44]} 1-0


[Site "https://www.chess.com"]

[Event "Titled Tuesday Blitz February 14 Early 2023"]
[White "Martic, Ivan"]
[Black "Indjic, Aleksandar"]
[WhiteFideId "929301"]
[BlackFideId "911925"]
[WhiteElo "2301"]
[BlackElo "2618"]
[Result "0-1"]
[Round "01"]
[TimeControl "180+2"]
[Date "2023.02.15"]
[WhiteClock "0:00:14"]
[BlackClock "0:00:19"]

1. e4 {[%clk 0:03:00]}  e5 {[%clk 0:02:59]} 2. Nf3 {[%clk 0:03:00]}  Nc6 {[%clk 0:02:59]} 3. Bb5 {[%clk 0:02:58]}  Nf6 {[%clk 0:02:58]} 4. O-O {[%clk 0:02:56]}  Nxe4 {[%clk 0:02:56]} 5. d4 {[%clk 0:02:56]}  Nd6 {[%clk 0:02:56]} 6. Bxc6 {[%clk 0:02:56]}  dxc6 {[%clk 0:02:56]} 7. dxe5 {[%clk 0:02:57]}  Nf5 {[%clk 0:02:56]} 8. Qxd8+ {[%clk 0:02:57]}  Kxd8 {[%clk 0:02:56]} 9. Nc3 {[%clk 0:02:57]}  Bd7 {[%clk 0:02:52]} 10. h3 {[%clk 0:02:54]}  Be7 {[%clk 0:02:47]} 11. Bg5 {[%clk 0:02:30]}  Bxg5 {[%clk 0:02:43]} 12. Nxg5 {[%clk 0:02:31]}  Ke7 {[%clk 0:02:42]} 13. Rad1 {[%clk 0:02:24]}  Rad8 {[%clk 0:02:38]} 14. Rd2 {[%clk 0:02:16]}  h6 {[%clk 0:02:36]} 15. Nge4 {[%clk 0:02:11]}  Bc8 {[%clk 0:02:25]} 16. Rfd1 {[%clk 0:02:11]}  Rxd2 {[%clk 0:02:23]} 17. Rxd2 {[%clk 0:02:11]}  g5 {[%clk 0:02:23]} 18. Kf1 {[%clk 0:01:29]}  b6 {[%clk 0:02:20]} 19. g3 {[%clk 0:01:05]}  Ke6 {[%clk 0:02:17]} 20. f4 {[%clk 0:00:57]}  gxf4 {[%clk 0:02:16]} 21. gxf4 {[%clk 0:00:58]}  Ke7 {[%clk 0:01:48]} 22. Kf2 {[%clk 0:00:57]}  Be6 {[%clk 0:01:46]} 23. b3 {[%clk 0:00:57]}  a5 {[%clk 0:01:45]} 24. Nf6 {[%clk 0:00:54]}  h5 {[%clk 0:01:31]} 25. Nce4 {[%clk 0:00:53]}  h4 {[%clk 0:01:31]} 26. Ng5 {[%clk 0:00:52]}  Bc8 {[%clk 0:01:07]} 27. c4 {[%clk 0:00:47]}  Ng3 {[%clk 0:00:56]} 28. c5 {[%clk 0:00:42]}  b5 {[%clk 0:00:53]} 29. Kf3 {[%clk 0:00:41]}  Nf5 {[%clk 0:00:50]} 30. a3 {[%clk 0:00:40]}  b4 {[%clk 0:00:43]} 31. axb4 {[%clk 0:00:38]}  axb4 {[%clk 0:00:44]} 32. Ke4 {[%clk 0:00:35]}  Ng3+ {[%clk 0:00:41]} 33. Kf3 {[%clk 0:00:34]}  Nf5 {[%clk 0:00:41]} 34. Rd1 {[%clk 0:00:31]}  Rf8 {[%clk 0:00:29]} 35. Ngh7 {[%clk 0:00:26]}  Rd8 {[%clk 0:00:26]} 36. Rxd8 {[%clk 0:00:23]}  Kxd8 {[%clk 0:00:27]} 37. Ng5 {[%clk 0:00:24]}  Nd4+ {[%clk 0:00:20]} 38. Ke4 {[%clk 0:00:22]}  Nxb3 {[%clk 0:00:20]} 39. Nxf7+ {[%clk 0:00:22]}  Ke7 {[%clk 0:00:20]} 40. Ng5 {[%clk 0:00:23]}  Nxc5+ {[%clk 0:00:21]} 41. Kd4 {[%clk 0:00:22]}  Ne6+ {[%clk 0:00:21]} 42. Kc4 {[%clk 0:00:20]}  Nxg5 {[%clk 0:00:21]} 43. fxg5 {[%clk 0:00:21]}  c5 {[%clk 0:00:21]} 44. g6 {[%clk 0:00:20]}  Be6+ {[%clk 0:00:20]} 45. Kd3 {[%clk 0:00:17]}  c4+ {[%clk 0:00:20]} 46. Kd4 {[%clk 0:00:17]}  c3 {[%clk 0:00:20]} 47. Ke3 {[%clk 0:00:15]}  b3 {[%clk 0:00:19]} 48. g7 {[%clk 0:00:15]}  b2 {[%clk 0:00:19]} 49. g8=Q {[%clk 0:00:13]}  Bxg8 {[%clk 0:00:18]} 50. Nxg8+ {[%clk 0:00:14]}  Ke6 {[%clk 0:00:19]} 0-1


[Site "https://www.chess.com"]